[Event "FIDE Open World Rapid 2024"]
[Site "New York"]
[Date "2024.12.27"]
[Round "6.29"]
[White "Anton Guijarro, David"]
[Black "Jumabayev, Rinat"]
[Result "0-1"]
[ECO "B22"]
[WhiteElo "2673"]
[BlackElo "2573"]
[Annotator "ChessBase"]
[PlyCount "112"]
[EventDate "2024.12.14"]
[EventType "swiss"]
[EventCountry "USA"]
[SourceTitle "playchess.com"]
[Source "ChessBase"]
[SourceQuality "1"]
[TimeControl "900+10"]

1. e4 {[%emt 0:00:02]} c5 {[%emt 0:00:01]} 2. Nf3 {[%emt 0:00:03]} e6 {[%emt 0:00:02]} 3. c3 {[%emt 0:00:04]} Nf6 {[%emt 0:00:15]} 4. e5 {[%emt 0:00:12]} Nd5 {[%emt 0:00:02]} 5. d4 {[%emt 0:00:05]} cxd4 {[%emt 0:00:10]} 6. cxd4 {[%emt 0:00:03]} d6 {[%emt 0:00:02]} 7. Bc4 {[%emt 0:00:10]} Nb6 {[%emt 0:00:17]} 8. Bd3 {[%emt 0:00:15]} Bd7 {[%emt 0:03:29]} 9. O-O {[%emt 0:00:12]} Bc6 {[%emt 0:00:02]} 10. Nc3 {[%emt 0:00:49]} N8d7 {[%emt 0:00:08]} 11. exd6 {[%emt 0:04:08]} Bxd6 {[%emt 0:00:08]} 12. Re1 {[%emt 0:00:10]} O-O {[%emt 0:01:28]} 13. Bc2 {[%emt 0:00:02]} Nd5 {[%emt 0:04:50]} 14. a3 {[%emt 0:00:36]} Re8 {[%emt 0:01:57]} 15. Qd3 {[%emt 0:01:00]} Nf8 {[%emt 0:00:49]} 16. Bg5 {[%emt 0:03:07]} Qd7 {[%emt 0:00:34]} 17. Ne4 {[%emt 0:00:40]} f6 {[%emt 0:00:10]} 18. Be3 {[%emt 0:01:37]} Rad8 {[%emt 0:00:03]} 19. Rad1 {[%emt 0:00:25]} Bb8 {[%emt 0:00:07]} 20. Bc1 {[%emt 0:00:47]} Qf7 {[%emt 0:00:06]} 21. Ng3 {[%emt 0:00:13]} a6 {[%emt 0:00:15]} 22. Bb3 {[%emt 0:00:09]} Qg6 {[%emt 0:00:39]} 23. Qe2 {[%emt 0:00:16]} Bb5 {[%emt 0:00:07]} 24. Bc4 {[%emt 0:00:07]} Bxc4 {[%emt 0:00:02]} 25. Qxc4 {[%emt 0:00:02]} Rc8 {[%emt 0:00:08]} 26. Qb3 {[%emt 0:00:05]} Qf7 {[%emt 0:00:42]} 27. Ne4 {[%emt 0:00:08]} b6 {[%emt 0:00:03]} 28. Qd3 {[%emt 0:00:23]} a5 {[%emt 0:00:01]} 29. Bd2 {[%emt 0:00:06]} Qd7 {[%emt 0:00:06]} 30. Qb3 {[%emt 0:00:21]} Ng6 {[%emt 0:00:05]} 31. h4 {[%emt 0:00:09]} h5 {[%emt 0:00:08]} 32. Nc3 {[%emt 0:00:08]} Nge7 {[%emt 0:00:01]} 33. a4 {[%emt 0:00:51]} Bd6 {[%emt 0:00:22]} 34. Re2 {[%emt 0:00:14]} Bb4 {[%emt 0:00:17]} 35. Rde1 {[%emt 0:00:03]} Rc6 {[%emt 0:00:01]} 36. g3 {[%emt 0:00:41]} Kf7 {[%emt 0:00:38]} 37. Ne4 {[%emt 0:00:07]} Bxd2 {[%emt 0:00:08]} 38. Nfxd2 {[%emt 0:00:13]} Nb4 {[%emt 0:01:42]} 39. Qf3 {[%emt 0:00:36]} Nc2 {[%emt 0:00:56]} 40. Qxh5+ {[%emt 0:00:30]} Kg8 {[%emt 0:00:04]} 41. Nf3 {[%emt 0:01:04]} Nxe1 {[%emt 0:00:03]} 42. Rxe1 {[%emt 0:00:03]} Nd5 {[%emt 0:00:18]} 43. Nfd2 {[%emt 0:00:50]} Rec8 {[%emt 0:00:06]} 44. Kh2 {[%emt 0:00:23]} Rc2 {[%emt 0:00:12]} 45. b3 {[%emt 0:00:11]} f5 {[%emt 0:00:08]} 46. Ng5 {[%emt 0:00:01]} Nf6 {[%emt 0:00:01]} 47. Qe2 {[%emt 0:00:01]} e5 {[%emt 0:00:17]} 48. Kg1 {[%emt 0:00:31]} Qxd4 {[%emt 0:00:16]} 49. Ngf3 {[%emt 0:00:01]} Qd5 {[%emt 0:00:01]} 50. Qxe5 {[%emt 0:00:02]} Qxe5 {[%emt 0:00:28]} 51. Rxe5 {[%emt 0:00:02]} Rd8 {[%emt 0:00:03]} 52. Nf1 {[%emt 0:00:39]} f4 {[%emt 0:00:19]} 53. gxf4 {[%emt 0:00:09]} Ng4 {[%emt 0:00:01]} 54. Rg5 {[%emt 0:00:12]} Nxf2 {[%emt 0:00:03]} 55. Ne3 {[%emt 0:00:02]} Nh3+ {[%emt 0:00:01]} 56. Kh1 {[%emt 0:00:04]} Nxg5 {[%emt 0:00:05]} 0-1

[Event "FIDE Open World Rapid 2024"]
[Site "New York"]
[Date "2024.12.27"]
[Round "6.29"]
[White "Damjanovic, Vuk"]
[Black "Dlugy, Maxim"]
[Result "1-0"]
[ECO "A01"]
[WhiteElo "2368"]
[BlackElo "2514"]
[Annotator "ChessBase"]
[PlyCount "81"]
[EventDate "2024.12.14"]
[EventType "swiss"]
[EventCountry "USA"]
[SourceTitle "playchess.com"]
[Source "ChessBase"]
[SourceQuality "1"]
[TimeControl "900+10"]

1. b3 {[%emt 0:00:03]} a5 {[%emt 0:00:13]} 2. Bb2 {[%emt 0:00:11]} a4 {[%emt 0:00:02]} 3. b4 {[%emt 0:00:06]} e5 {[%emt 0:00:09]} 4. a3 {[%emt 0:00:21]} d6 {[%emt 0:01:29]} 5. c4 {[%emt 0:00:06]} Nd7 {[%emt 0:00:12]} 6. Nc3 {[%emt 0:00:35]} Nb6 {[%emt 0:00:02]} 7. e3 {[%emt 0:00:03]} c5 {[%emt 0:00:21]} 8. Nf3 {[%emt 0:00:36]} Be6 {[%emt 0:01:31]} 9. d3 {[%emt 0:01:01]} f6 {[%emt 0:00:50]} 10. Be2 {[%emt 0:01:24]} Ne7 {[%emt 0:00:02]} 11. O-O {[%emt 0:00:34]} Nc6 {[%emt 0:00:16]} 12. Nd2 {[%emt 0:02:27]} d5 {[%emt 0:00:41]} 13. b5 {[%emt 0:00:56]} Ne7 {[%emt 0:00:18]} 14. e4 {[%emt 0:00:12]} d4 {[%emt 0:01:58]} 15. Nd5 {[%emt 0:00:03]} Nexd5 {[%emt 0:01:35]} 16. exd5 {[%emt 0:00:11]} Bf7 {[%emt 0:00:14]} 17. Bg4 {[%emt 0:02:22]} Bd6 {[%emt 0:01:55]} 18. Ne4 {[%emt 0:00:06]} g6 {[%emt 0:00:40]} 19. Qd2 {[%emt 0:02:34]} f5 {[%emt 0:00:12]} 20. Nxd6+ {[%emt 0:00:07]} Qxd6 {[%emt 0:00:01]} 21. f4 {[%emt 0:00:36]} exf4 {[%emt 0:01:26]} 22. Rae1+ {[%emt 0:00:09]} Kd7 {[%emt 0:00:07]} 23. Qxf4 {[%emt 0:01:03]} Qxf4 {[%emt 0:00:14]} 24. Rxf4 {[%emt 0:00:02]} Rae8 {[%emt 0:00:14]} 25. Ref1 {[%emt 0:00:02]} Re3 {[%emt 0:00:24]} 26. Bc1 {[%emt 0:00:13]} Re5 {[%emt 0:00:59]} 27. Bd1 {[%emt 0:00:20]} h5 {[%emt 0:00:04]} 28. Bd2 {[%emt 0:00:12]} Ra8 {[%emt 0:00:55]} 29. h3 {[%emt 0:00:29]} Nc8 {[%emt 0:00:00]} 30. g4 {[%emt 0:00:21]} hxg4 {[%emt 0:00:02]} 31. hxg4 {[%emt 0:00:02]} Nd6 {[%emt 0:00:01]} 32. gxf5 {[%emt 0:00:51]} gxf5 {[%emt 0:00:01]} 33. Rh4 {[%emt 0:00:15]} Rg8+ {[%emt 0:00:06]} 34. Kf2 {[%emt 0:00:13]} Ree8 {[%emt 0:01:06]} 35. b6 {[%emt 0:00:28]} Ra8 {[%emt 0:00:12]} 36. Bf4 {[%emt 0:00:08]} Ne8 {[%emt 0:00:40]} 37. Rh7 {[%emt 0:00:59]} Rg7 {[%emt 0:00:01]} 38. Rfh1 {[%emt 0:00:09]} Ke7 {[%emt 0:00:48]} 39. Re1+ {[%emt 0:00:03]} Kf6 {[%emt 0:00:08]} 40. Be5+ {[%emt 0:00:04]} Kg6 {[%emt 0:00:01]} 41. Rxg7+ {[%emt 0:00:03]} 1-0

[Event "FIDE Open World Rapid 2024"]
[Site "New York"]
[Date "2024.12.27"]
[Round "6.30"]
[White "Gelfand, Boris"]
[Black "Makarian, Rudik"]
[Result "1/2-1/2"]
[ECO "A08"]
[WhiteElo "2657"]
[BlackElo "2547"]
[Annotator "ChessBase"]
[PlyCount "112"]
[EventDate "2024.12.14"]
[EventType "swiss"]
[EventCountry "USA"]
[SourceTitle "playchess.com"]
[Source "ChessBase"]
[SourceQuality "1"]
[TimeControl "900+10"]

1. Nf3 {[%emt 0:00:01]} d5 {[%emt 0:00:05]} 2. g3 {[%emt 0:00:02]} c5 {[%emt 0:00:35]} 3. Bg2 {[%emt 0:00:02]} f6 {[%emt 0:00:02]} 4. d4 {[%emt 0:00:39]} cxd4 {[%emt 0:00:01]} 5. Nxd4 {[%emt 0:00:00]} e5 {[%emt 0:00:02]} 6. Nb3 {[%emt 0:00:09]} Ne7 {[%emt 0:00:03]} 7. O-O {[%emt 0:00:50]} Nbc6 {[%emt 0:00:01]} 8. Nc3 {[%emt 0:00:37]} Be6 {[%emt 0:00:06]} 9. a4 {[%emt 0:02:33]} h5 {[%emt 0:01:22]} 10. Nc5 {[%emt 0:01:17]} Bc8 {[%emt 0:00:02]} 11. a5 {[%emt 0:00:01]} Rb8 {[%emt 0:05:25]} 12. a6 {[%emt 0:01:19]} bxa6 {[%emt 0:00:03]} 13. Nxa6 {[%emt 0:00:01]} Rb6 {[%emt 0:00:20]} 14. Nc5 {[%emt 0:00:05]} h4 {[%emt 0:00:21]} 15. N5a4 {[%emt 0:02:01]} Rb4 {[%emt 0:00:46]} 16. e4 {[%emt 0:02:16]} hxg3 {[%emt 0:00:40]} 17. hxg3 {[%emt 0:00:10]} Bh3 {[%emt 0:01:52]} 18. Bxh3 {[%emt 0:00:56]} Rxh3 {[%emt 0:00:01]} 19. Nxd5 {[%emt 0:01:03]} Rxe4 {[%emt 0:02:44]} 20. Nxe7 {[%emt 0:00:22]} Qxd1 {[%emt 0:01:39]} 21. Rxd1 {[%emt 0:00:01]} Bxe7 {[%emt 0:00:03]} 22. Nc3 {[%emt 0:00:49]} Rc4 {[%emt 0:00:36]} 23. Ra6 {[%emt 0:01:13]} Rh8 {[%emt 0:01:17]} 24. Be3 {[%emt 0:00:16]} Kf7 {[%emt 0:00:23]} 25. Bxa7 {[%emt 0:00:47]} Ra8 {[%emt 0:00:28]} 26. Rda1 {[%emt 0:00:07]} Nb4 {[%emt 0:00:11]} 27. R6a4 {[%emt 0:00:22]} Rc7 {[%emt 0:00:06]} 28. Be3 {[%emt 0:01:23]} Rxa4 {[%emt 0:00:01]} 29. Rxa4 {[%emt 0:00:01]} Nxc2 {[%emt 0:00:05]} 30. Ra7 {[%emt 0:00:07]} Rxa7 {[%emt 0:00:06]} 31. Bxa7 {[%emt 0:00:01]} Ke6 {[%emt 0:00:03]} 32. Kf1 {[%emt 0:00:03]} f5 {[%emt 0:00:02]} 33. Ke2 {[%emt 0:00:03]} g5 {[%emt 0:00:14]} 34. Kd3 {[%emt 0:00:15]} Nb4+ {[%emt 0:00:11]} 35. Kc4 {[%emt 0:00:09]} g4 {[%emt 0:00:05]} 36. Na4 {[%emt 0:00:16]} Nc6 {[%emt 0:00:26]} 37. Bc5 {[%emt 0:00:06]} f4 {[%emt 0:00:38]} 38. Bxe7 {[%emt 0:00:16]} Nxe7 {[%emt 0:00:09]} 39. Nc5+ {[%emt 0:00:27]} Kf5 {[%emt 0:00:02]} 40. b4 {[%emt 0:00:27]} e4 {[%emt 0:00:08]} 41. gxf4 {[%emt 0:00:04]} e3 {[%emt 0:00:06]} 42. Kd3 {[%emt 0:00:11]} exf2 {[%emt 0:00:08]} 43. Ke2 {[%emt 0:00:01]} g3 {[%emt 0:00:07]} 44. Nd3 {[%emt 0:00:01]} Nd5 {[%emt 0:00:22]} 45. Nxf2 {[%emt 0:00:11]} Kxf4 {[%emt 0:00:21]} 46. Kf1 {[%emt 0:00:33]} Kf3 {[%emt 0:00:08]} 47. Nd3 {[%emt 0:00:01]} Nc3 {[%emt 0:00:10]} 48. Ne1+ {[%emt 0:00:08]} Kg4 {[%emt 0:00:04]} 49. Kg2 {[%emt 0:00:06]} Nd5 {[%emt 0:00:01]} 50. Nd3 {[%emt 0:00:10]} Ne3+ {[%emt 0:00:05]} 51. Kg1 {[%emt 0:00:00]} Kf3 {[%emt 0:00:13]} 52. b5 {[%emt 0:00:09]} Nd5 {[%emt 0:00:07]} 53. Ne5+ {[%emt 0:00:12]} Ke4 {[%emt 0:00:03]} 54. Kg2 {[%emt 0:00:10]} Kxe5 {[%emt 0:00:01]} 55. Kxg3 {[%emt 0:00:01]} Kd6 {[%emt 0:00:01]} 56. b6 {[%emt 0:00:03]} Nxb6 {[%emt 0:00:25]} 1/2-1/2

[Event "FIDE Open World Rapid 2024"]
[Site "New York"]
[Date "2024.12.27"]
[Round "6.30"]
[White "Benjamin, Joel"]
[Black "Gaehwiler, Gabriel"]
[Result "1-0"]
[ECO "B22"]
[WhiteElo "2473"]
[BlackElo "2392"]
[Annotator "ChessBase"]
[PlyCount "87"]
[EventDate "2024.12.14"]
[EventType "swiss"]
[EventCountry "USA"]
[SourceTitle "playchess.com"]
[Source "ChessBase"]
[SourceQuality "1"]
[TimeControl "900+10"]

1. e4 {[%emt 0:00:06]} c5 {[%emt 0:00:05]} 2. c3 {[%emt 0:00:00]} d5 {[%emt 0:00:08]} 3. exd5 {[%emt 0:00:00]} Nf6 {[%emt 0:00:02]} 4. Bb5+ {[%emt 0:00:08]} Nbd7 {[%emt 0:00:22]} 5. d4 {[%emt 0:00:04]} a6 {[%emt 0:04:26]} 6. Be2 {[%emt 0:00:09]} Nxd5 {[%emt 0:00:15]} 7. Nf3 {[%emt 0:00:10]} e6 {[%emt 0:01:06]} 8. c4 {[%emt 0:00:17]} N5f6 {[%emt 0:00:35]} 9. Nc3 {[%emt 0:00:05]} Be7 {[%emt 0:00:58]} 10. O-O {[%emt 0:01:08]} b6 {[%emt 0:00:21]} 11. d5 {[%emt 0:01:48]} exd5 {[%emt 0:00:20]} 12. Nxd5 {[%emt 0:03:31]} Bd6 {[%emt 0:04:46]} 13. Nh4 {[%emt 0:02:23]} O-O {[%emt 0:01:22]} 14. Nf5 {[%emt 0:01:09]} Be5 {[%emt 0:00:04]} 15. f4 {[%emt 0:02:02]} Bb8 {[%emt 0:00:09]} 16. Nde7+ {[%emt 0:00:42]} Kh8 {[%emt 0:00:03]} 17. Bf3 {[%emt 0:00:04]} Ra7 {[%emt 0:00:38]} 18. Nc6 {[%emt 0:00:22]} Qc7 {[%emt 0:00:02]} 19. Nxa7 {[%emt 0:00:12]} Qxa7 {[%emt 0:00:02]} 20. Bd2 {[%emt 0:00:10]} b5 {[%emt 0:00:07]} 21. Qc2 {[%emt 0:00:17]} Nb6 {[%emt 0:00:18]} 22. cxb5 {[%emt 0:00:33]} Bxf5 {[%emt 0:01:09]} 23. Qxf5 {[%emt 0:00:03]} Nc4 {[%emt 0:00:02]} 24. Bc3 {[%emt 0:00:59]} Ne3 {[%emt 0:00:08]} 25. Qg5 {[%emt 0:00:07]} h6 {[%emt 0:00:33]} 26. Qh4 {[%emt 0:00:09]} Nf5 {[%emt 0:00:17]} 27. Qf2 {[%emt 0:00:47]} Bxf4 {[%emt 0:00:23]} 28. Rae1 {[%emt 0:00:20]} Nd4 {[%emt 0:00:00]} 29. bxa6 {[%emt 0:00:06]} Qxa6 {[%emt 0:00:11]} 30. Be2 {[%emt 0:00:24]} Nxe2+ {[%emt 0:00:29]} 31. Qxe2 {[%emt 0:00:13]} Qd6 {[%emt 0:00:02]} 32. g3 {[%emt 0:00:37]} Bg5 {[%emt 0:00:01]} 33. Qe7 {[%emt 0:00:11]} Qb8 {[%emt 0:00:05]} 34. Qxc5 {[%emt 0:00:07]} Rc8 {[%emt 0:00:15]} 35. Qf2 {[%emt 0:00:02]} Ng4 {[%emt 0:00:08]} 36. Qxf7 {[%emt 0:00:21]} Qb6+ {[%emt 0:00:16]} 37. Kh1 {[%emt 0:00:29]} Nf6 {[%emt 0:00:25]} 38. Qe6 {[%emt 0:00:19]} Qb7+ {[%emt 0:00:06]} 39. Kg1 {[%emt 0:00:02]} Qa7+ {[%emt 0:00:31]} 40. Kg2 {[%emt 0:00:13]} Qb7+ {[%emt 0:00:03]} 41. Kh3 {[%emt 0:00:05]} Re8 {[%emt 0:00:13]} 42. Qf5 {[%emt 0:00:06]} Ne4 {[%emt 0:00:03]} 43. Qg6 {[%emt 0:00:32]} Qd7+ {[%emt 0:00:37]} 44. Kg2 {[%emt 0:00:10]} 1-0

[Event "FIDE Open World Rapid 2024"]
[Site "New York"]
[Date "2024.12.27"]
[Round "6.31"]
[White "Andriasian, Zaven"]
[Black "Isanzhulov, Arystan"]
[Result "0-1"]
[ECO "C24"]
[WhiteElo "2554"]
[BlackElo "2395"]
[Annotator "ChessBase"]
[PlyCount "82"]
[EventDate "2024.12.14"]
[EventType "swiss"]
[EventCountry "USA"]
[SourceTitle "playchess.com"]
[Source "ChessBase"]
[SourceQuality "1"]
[TimeControl "900+10"]

1. e4 {[%emt 0:00:03]} e5 {[%emt 0:00:04]} 2. Bc4 {[%emt 0:00:02]} Nf6 {[%emt 0:00:17]} 3. d3 {[%emt 0:00:01]} c6 {[%emt 0:00:12]} 4. Nf3 {[%emt 0:00:08]} d5 {[%emt 0:00:10]} 5. Bb3 {[%emt 0:00:17]} Bb4+ {[%emt 0:00:11]} 6. c3 {[%emt 0:00:08]} Bd6 {[%emt 0:00:10]} 7. Nbd2 {[%emt 0:00:06]} Nbd7 {[%emt 0:00:28]} 8. O-O {[%emt 0:00:03]} O-O {[%emt 0:00:11]} 9. Re1 {[%emt 0:00:02]} Re8 {[%emt 0:00:25]} 10. h3 {[%emt 0:00:20]} h6 {[%emt 0:00:49]} 11. Nf1 {[%emt 0:00:02]} dxe4 {[%emt 0:00:23]} 12. dxe4 {[%emt 0:00:02]} Nc5 {[%emt 0:00:02]} 13. Bc2 {[%emt 0:00:03]} a5 {[%emt 0:00:01]} 14. Ng3 {[%emt 0:00:10]} Bc7 {[%emt 0:02:32]} 15. Qe2 {[%emt 0:00:42]} Nh7 {[%emt 0:01:19]} 16. Be3 {[%emt 0:00:42]} Ne6 {[%emt 0:00:44]} 17. Rad1 {[%emt 0:00:01]} Qf6 {[%emt 0:00:11]} 18. Nf5 {[%emt 0:02:27]} Nhf8 {[%emt 0:01:04]} 19. Nh2 {[%emt 0:00:10]} Qg6 {[%emt 0:04:40]} 20. Ng4 {[%emt 0:01:42]} Nf4 {[%emt 0:01:24]} 21. Bxf4 {[%emt 0:02:12]} exf4 {[%emt 0:00:03]} 22. Qf3 {[%emt 0:02:19]} Nh7 {[%emt 0:00:23]} 23. h4 {[%emt 0:00:33]} Nf6 {[%emt 0:00:10]} 24. Nxf6+ {[%emt 0:01:30]} Qxf6 {[%emt 0:00:01]} 25. h5 {[%emt 0:00:00]} Qg5 {[%emt 0:00:37]} 26. Bb3 {[%emt 0:01:27]} Bxf5 {[%emt 0:00:38]} 27. exf5 {[%emt 0:00:01]} Qxf5 {[%emt 0:00:01]} 28. g4 {[%emt 0:00:13]} Qf6 {[%emt 0:00:41]} 29. Kg2 {[%emt 0:00:18]} Rxe1 {[%emt 0:00:16]} 30. Rxe1 {[%emt 0:00:01]} Rd8 {[%emt 0:00:03]} 31. a4 {[%emt 0:00:19]} Qh4 {[%emt 0:00:19]} 32. Bc2 {[%emt 0:00:34]} Qf6 {[%emt 0:00:27]} 33. Kh3 {[%emt 0:00:03]} Kf8 {[%emt 0:01:21]} 34. Qe4 {[%emt 0:02:36]} g6 {[%emt 0:00:03]} 35. hxg6 {[%emt 0:00:18]} fxg6 {[%emt 0:00:06]} 36. Bb3 {[%emt 0:00:30]} Bb6 {[%emt 0:00:22]} 37. Qf3 {[%emt 0:00:35]} h5 {[%emt 0:00:07]} 38. gxh5 {[%emt 0:00:20]} Qf5+ {[%emt 0:00:01]} 39. Kh2 {[%emt 0:00:15]} Rd3 {[%emt 0:00:06]} 40. Qg2 {[%emt 0:00:17]} Qxh5+ {[%emt 0:00:05]} 41. Kg1 {[%emt 0:00:01]} Rg3 {[%emt 0:00:02]} 0-1

[Event "FIDE Open World Rapid 2024"]
[Site "New York"]
[Date "2024.12.27"]
[Round "6.31"]
[White "Rosen, Eric"]
[Black "Dragnev, Valentin"]
[Result "1/2-1/2"]
[ECO "D02"]
[WhiteElo "2377"]
[BlackElo "2563"]
[Annotator "ChessBase"]
[PlyCount "57"]
[EventDate "2024.12.14"]
[EventType "swiss"]
[EventCountry "USA"]
[SourceTitle "playchess.com"]
[Source "ChessBase"]
[SourceQuality "1"]
[TimeControl "900+10"]

1. d4 {[%emt 0:00:02]} Nf6 {[%emt 0:00:02]} 2. Bf4 {[%emt 0:00:01]} d5 {[%emt 0:00:02]} 3. Nf3 {[%emt 0:00:09]} Bf5 {[%emt 0:00:04]} 4. c4 {[%emt 0:00:02]} e6 {[%emt 0:00:03]} 5. Qb3 {[%emt 0:00:08]} Nbd7 {[%emt 0:00:08]} 6. e3 {[%emt 0:00:12]} Bd6 {[%emt 0:00:09]} 7. Bxd6 {[%emt 0:00:02]} cxd6 {[%emt 0:00:01]} 8. cxd5 {[%emt 0:00:01]} Nxd5 {[%emt 0:00:33]} 9. Nbd2 {[%emt 0:00:01]} Bg6 {[%emt 0:00:29]} 10. Be2 {[%emt 0:00:06]} O-O {[%emt 0:00:06]} 11. O-O {[%emt 0:00:03]} N5b6 {[%emt 0:01:54]} 12. Rac1 {[%emt 0:00:34]} Nf6 {[%emt 0:00:38]} 13. Bd3 {[%emt 0:01:23]} Bh5 {[%emt 0:00:55]} 14. Rfe1 {[%emt 0:01:08]} Qe7 {[%emt 0:01:01]} 15. Qa3 {[%emt 0:00:36]} Nbd5 {[%emt 0:01:11]} 16. e4 {[%emt 0:01:45]} Bxf3 {[%emt 0:01:03]} 17. Nxf3 {[%emt 0:00:04]} Nf4 {[%emt 0:00:06]} 18. e5 {[%emt 0:01:15]} N6d5 {[%emt 0:03:55]} 19. exd6 {[%emt 0:00:13]} Qd8 {[%emt 0:00:12]} 20. Be4 {[%emt 0:00:30]} Qb6 {[%emt 0:00:48]} 21. g3 {[%emt 0:00:30]} Nh5 {[%emt 0:00:02]} 22. Bxd5 {[%emt 0:00:45]} exd5 {[%emt 0:00:01]} 23. Rc7 {[%emt 0:00:50]} Nf6 {[%emt 0:00:03]} 24. Ree7 {[%emt 0:00:35]} Rab8 {[%emt 0:00:03]} 25. b3 {[%emt 0:03:46]} Ne8 {[%emt 0:00:47]} 26. Rcd7 {[%emt 0:00:31]} Nf6 {[%emt 0:00:11]} 27. Rc7 {[%emt 0:00:31]} Ne8 {[%emt 0:00:01]} 28. Rcd7 {[%emt 0:02:33]} Nf6 {[%emt 0:00:03]} 29. Rc7 {[%emt 0:00:44]} 1/2-1/2

[Event "FIDE Open World Rapid 2024"]
[Site "New York"]
[Date "2024.12.27"]
[Round "6.32"]
[White "Niemann, Hans Moke"]
[Black "Svane, Frederik"]
[Result "1/2-1/2"]
[ECO "C54"]
[WhiteElo "2734"]
[BlackElo "2668"]
[Annotator "TA"]
[PlyCount "128"]
[EventDate "2024.12.14"]
[EventType "swiss"]
[EventCountry "USA"]
[SourceTitle "playchess.com"]
[Source "ChessBase"]
[SourceQuality "1"]
[TimeControl "900+10"]

{[%evp 51,128,0,0,0,0,-9,0,0,0,0,0,0,0,0,0,0,0,0,0,0,0,0,0,0,1,0,0,0,0,0,0,0,0,0,0,0,0,0,0,0,0,0,0,0,0,0,0,0,0,0,0,0,0,0,0,0,0,0,8,8,8,8,8,8,8,8,8,8,8,8,8,0,0,0,0,0,0,0,0]} 1. e4 {[%emt 0:00:02]} e5 {[%emt 0:00:01]} 2. Nf3 {[%emt 0:00:02]} Nc6 {[%emt 0:00:01]} 3. Bc4 {[%emt 0:00:01]} Bc5 {[%emt 0:00:01]} 4. c3 {[%emt 0:00:07]} Nf6 {[%emt 0:00:02]} 5. d3 {[%emt 0:00:02]} O-O {[%emt 0:00:03]} 6. Nbd2 {[%emt 0:00:02]} a5 {[%emt 0:00:22] C54: Giuoco Piano: 4 c3 Nf6, main lines with 5 d4 and 5 d3.} 7. O-O {[%emt 0:00:11]} d6 {[%emt 0:00:05]} 8. h3 {[%emt 0:00:22]} Be6 {[%emt 0:00:43]} 9. Bb5 {[%emt 0:00:07]} Ba7 $1 {[%emt 0:00:19][%mdl 4] is now more promising than 9...h6.} 10. Re1 {[%emt 0:00:24]} Ne7 {[%emt 0:00:49]} 11. d4 {[%emt 0:00:03]} Ng6 {[%emt 0:00:01]} 12. Ba4 {[%emt 0:00:02]} Nh5 {[%emt 0:00:45]} 13. Nf1 {[%emt 0:00:46]} Nhf4 {[%emt 0:00:37]} 14. Ng3 {[%emt 0:00:13]} exd4 {[%emt 0:01:10]} 15. cxd4 {[%emt 0:00:08]} d5 {[%emt 0:00:06]} 16. Bxf4 {[%emt 0:00:02]} Nxf4 {[%emt 0:00:03]} 17. Qd2 {[%emt 0:00:01]} dxe4 {[%emt 0:00:44]} 18. Rxe4 {[%emt 0:00:01]} Ng6 {[%emt 0:00:36]} 19. Bb3 {[%emt 0:00:01]} Bd5 {[%emt 0:01:27]} 20. Bxd5 {[%emt 0:00:01]} Qxd5 {[%emt 0:00:01]} 21. Rae1 {[%emt 0:00:01]} Rad8 {[%emt 0:03:21]} 22. h4 {[%emt 0:00:01]} f5 {[%emt 0:01:22]} 23. Re6 $146 {[%emt 0:00:03]} ({Predecessor:} 23. R4e2 f4 24. Ne4 Bxd4 25. Qc2 h6 26. Qxc7 Rd7 27. Qc2 Qc6 28. Qxc6 bxc6 29. Rd2 {1-0 Niemann,H (2692)-Vrolijk,L (2573) Tata Steel-B 86th 2024 (1)}) 23... f4 {[%emt 0:01:04]} 24. Nf1 {[%emt 0:00:01]} Bxd4 {[%emt 0:03:00]} 25. h5 {[%emt 0:00:01]} Nh8 {[%emt 0:00:01]} 26. Qxd4 {[%emt 0:00:49]} Qxd4 {[%emt 0:00:01]} 27. Nxd4 {[%emt 0:00:02]} Rxd4 {[%emt 0:00:01]} 28. Nh2 {[%emt 0:01:49]} Rd7 {[%emt 0:01:19]} 29. Nf3 {[%emt 0:00:16]} Nf7 {[%emt 0:00:01]} 30. Re7 {[%emt 0:00:06]} Rxe7 {[%emt 0:00:01]} 31. Rxe7 {[%emt 0:00:02]} Rc8 {[%emt 0:00:02]} 32. Kf1 {[%emt 0:01:28]} g6 {[%emt 0:01:02]} 33. hxg6 {[%emt 0:00:47]} hxg6 {[%emt 0:00:00]} 34. Rd7 {[%emt 0:00:26]} Kf8 {[%emt 0:00:17]} 35. Rd4 {[%emt 0:00:04]} Rd8 {[%emt 0:00:09]} 36. Rxf4 {[%emt 0:00:01]} Kg7 {[%emt 0:00:01]} 37. Ke2 {[%emt 0:00:18]} Rd5 {[%emt 0:00:01]} 38. Ke3 {[%emt 0:00:26]} Nd6 {[%emt 0:00:12]} 39. Nd4 {[%emt 0:00:21]} g5 {[%emt 0:00:39]} 40. Rg4 {[%emt 0:00:44]} Nc4+ {[%emt 0:00:14]} 41. Ke4 $1 {[%emt 0:00:46]} Re5+ {[%emt 0:00:00]} 42. Kd3 {[%emt 0:00:01]} Nxb2+ {[%emt 0:01:08]} 43. Kc2 {[%emt 0:00:03]} Nc4 {[%emt 0:00:17]} 44. Nf3 {[%emt 0:00:13]} Rc5 {[%emt 0:00:01]} 45. Rxg5+ {[%emt 0:00:38]} Rxg5 {[%emt 0:00:01]} 46. Nxg5 {[%emt 0:00:01]} Kf6 {[%emt 0:00:00]} 47. Nf3 {[%emt 0:00:10]} (47. Ne4+ Kf5 48. Kd3 Ne5+ 49. Ke3 b6 $14) 47... Nd6 {[%emt 0:00:18]} 48. Kd3 {[%emt 0:00:06]} c5 {[%emt 0:00:09]} 49. a4 {[%emt 0:00:01]} b5 {[%emt 0:00:01]} 50. axb5 {[%emt 0:00:04]} Nxb5 {[%emt 0:00:01]} 51. Kc4 {[%emt 0:00:01]} Nd6+ {[%emt 0:00:07]} 52. Kd5 {[%emt 0:00:01]} (52. Kxc5 $5 Ne4+ $8 53. Kb5 $11) 52... Nb5 {[%emt 0:00:21]} 53. Kxc5 {[%emt 0:02:47]} Nc3 {[%emt 0:00:00]} 54. Nd2 {[%emt 0:00:05]} Nd1 {[%emt 0:00:01]} 55. f3 {[%emt 0:01:01]} Ne3 {[%emt 0:00:03]} 56. g3 {[%emt 0:00:02]} a4 {[%emt 0:00:09]} 57. Kb4 {[%emt 0:00:25]} Nf5 {[%emt 0:00:21]} 58. g4 {[%emt 0:00:28]} Ne3 {[%emt 0:00:25]} 59. Nc4 {[%emt 0:01:38]} Ng2 {[%emt 0:00:00]} ({Weaker is} 59... Nxc4 60. Kxc4 Kg5 61. Kb4 Kh4 62. Kxa4 Kg5 63. Kb4 Kf4 64. Kc5) 60. Kxa4 {[%emt 0:00:16]} Kg5 {[%emt 0:00:05]} 61. Nd6 {[%emt 0:00:19]} Nh4 {[%emt 0:00:22]} 62. Ne4+ {[%emt 0:00:02]} Kf4 {[%emt 0:00:01]} 63. g5 {[%emt 0:00:05]} Kxf3 {[%emt 0:00:05]} 64. g6 {[%emt 0:00:03]} Nxg6 {[%emt 0:00:02]} 1/2-1/2